fUST/lending_fUST_20250603
["ID","MTS","AMOUNT","RATE_DAILY","PERIOD"]
[363897571,1748915449692,-573.34,0.00019726,2]
[363897572,1748915449701,-440.0,0.00019726,2]
[363897573,1748915449804,-440.0,0.00019726,2]
[363897574,1748915449814,-1737.27,0.00019726,2]
[363897575,1748915449823,-490.89,0.00019726,2]
[363897576,1748915449833,-1368.96,0.00019726,2]
[363897577,1748915449842,-1273.02,0.00019726,2]
[363897578,1748915449851,-440.0,0.00019726,2]
[363897580,1748915449862,-484.05,0.00019726,2]
[363897582,1748915449872,-440.0,0.00019726,2]
[363897584,1748915449882,-2793.2,0.00019726,2]
[363897585,1748915449891,-440.0,0.00019726,2]
[363897587,1748915449900,-1600.29,0.00019726,2]
[363897589,1748915449910,-154.564736,0.00019796,2]
[363897591,1748915449919,-2680.44257,0.00019797,2]
[363897593,1748915449928,-2000.0,0.000198,2]
[363897595,1748915449939,-2000.0,0.000198,3]
[363897597,1748915449949,-12381.87,0.00019873,2]
[363897599,1748915449958,-1000.0,0.00019964,2]
[363897601,1748915449967,-184.58001617,0.0002,5]
[363897603,1748915449977,-19432.0,0.0002,2]
[363897605,1748915449986,-174.93,0.0002,2]
[363897606,1748915449996,-440.0,0.0002,2]
[363897607,1748915450005,-440.0,0.0002,2]
[363897608,1748915450014,-151.249787,0.0002,2]
[363897609,1748915450024,-440.0,0.0002,2]
[363897610,1748915450033,-3072.97,0.0002,2]
[363897611,1748915450042,-440.0,0.0002,2]
[363897612,1748915450053,-440.0,0.0002,2]
[363897613,1748915450063,-673.12,0.0002,2]
[363897614,1748915450073,-1140.48,0.0002,2]
[363897615,1748915450083,-1166.26,0.0002,2]
[363897616,1748915450093,-1327.55,0.0002,2]
[363897617,1748915450103,-2891.61,0.0002,2]
[363897618,1748915450112,-820.65,0.0002,2]
[363897620,1748915450122,-440.0,0.0002,2]
[363897621,1748915450132,-1856.38,0.0002,2]
[363897622,1748915450142,-487.61,0.0002,2]
[363897623,1748915450151,-1499.33,0.0002,2]
[363897624,1748915450161,-3772.31,0.0002,2]
[363897625,1748915450171,-578.77,0.0002,2]
[363897626,1748915450180,-151.0,0.0002,2]
[363897627,1748915450190,-2565.31,0.0002,2]
[363897628,1748915450201,-151.0,0.0002,2]
[363897629,1748915450211,-151.0,0.0002,2]
[363897631,1748915450221,-929.64,0.0002,2]
[363897632,1748915450231,-1474.4,0.0002,2]
[363897633,1748915450240,-151.0,0.0002,2]
[363897635,1748915450250,-389.76064,0.0002,2]
[363897637,1748915450261,-617.96,0.0002,2]
[363897639,1748915450271,-389.76064,0.0002,2]
[363897641,1748915450280,-440.0,0.0002,2]
[363897643,1748915450290,-440.0,0.0002,2]
[363897644,1748915450300,-1385.9,0.0002,2]
[363897646,1748915450309,-151.0,0.0002,2]
[363897647,1748915450319,-152.04374743,0.0002,2]
[363897648,1748915450328,-1505.24,0.0002,2]
[363897649,1748915450338,-573.34,0.0002,2]
[363897650,1748915450347,-440.0,0.0002,2]
[363897651,1748915450357,-212.72285635,0.0002,2]
[363897652,1748915450366,-155.357839,0.0002,2]
[363897653,1748915450376,-1737.27,0.0002,2]
[363897654,1748915450385,-490.89,0.0002,2]
[363897655,1748915450395,-1368.96,0.0002,2]
[363897656,1748915450405,-1273.02,0.0002,2]
[363897657,1748915450414,-395.48464066,0.0002,2]
[363897658,1748915450423,-484.05,0.0002,2]
[363897659,1748915450432,-440.0,0.0002,2]
[363897660,1748915450441,-2793.2,0.0002,2]
[363897661,1748915450451,-440.0,0.0002,2]
[363897662,1748915450460,-1600.29,0.0002,2]
[363897663,1748915450470,-2680.44257,0.00020038,2]
[363897664,1748915450480,-500.0,0.00020067,2]
[363897665,1748915450489,-500.0,0.00020067,2]
[363897666,1748915450499,-2131.48118663,0.00020173,2]
[363897667,1748915450509,-193.910766,0.00020187,2]
[363897668,1748915450519,-212.83419937,0.00020273,3]
[363897669,1748915450528,-12668.79298183,0.00020273,3]
[363897670,1748915450538,-440.0,0.00020273,2]
[363897671,1748915450547,-440.0,0.00020273,2]
[363897672,1748915450557,-227.48967016,0.00020273,2]
[363897673,1748915450567,-3072.97,0.00020273,2]
[363897674,1748915450577,-440.0,0.00020273,2]
[363897675,1748915450588,-440.0,0.00020273,2]
[363897676,1748915450597,-673.12,0.00020273,2]
[363897677,1748915450608,-1140.48,0.00020273,2]
[363897678,1748915450617,-1166.26,0.00020273,2]
[363897679,1748915450626,-1327.55,0.00020273,2]
[363897680,1748915450636,-2891.61,0.00020273,2]
[363897681,1748915450646,-820.65,0.00020273,2]
[363897682,1748915450655,-440.0,0.00020273,2]
[363897683,1748915450666,-1856.38,0.00020273,2]
[363897684,1748915450675,-487.61,0.00020273,2]
[363897685,1748915450684,-1499.33,0.00020273,2]
[363897686,1748915450694,-3772.31,0.00020273,2]
[363897687,1748915450703,-578.77,0.00020273,2]
[363897688,1748915450713,-2565.31,0.00020273,2]
[363897689,1748915450723,-929.64,0.00020273,2]
[363897690,1748915450732,-1474.4,0.00020273,2]
[363897691,1748915450741,-617.96,0.00020273,2]
[363897692,1748915450750,-440.0,0.00020273,2]
[363897693,1748915450760,-440.0,0.00020273,2]
[363897694,1748915450769,-1385.9,0.00020273,2]
[363897695,1748915450780,-1505.24,0.00020273,2]
[363897696,1748915450791,-573.34,0.00020273,2]
[363897697,1748915450802,-440.0,0.00020273,2]
[363897698,1748915450813,-1737.27,0.00020273,2]
[363897699,1748915450823,-490.89,0.00020273,2]
[363897700,1748915450834,-1368.96,0.00020273,2]
[363897701,1748915450844,-1273.02,0.00020273,2]
[363897702,1748915450853,-484.05,0.00020273,2]
[363897703,1748915450862,-440.0,0.00020273,2]
[363897704,1748915450873,-2793.2,0.00020273,2]
[363897705,1748915450884,-440.0,0.00020273,2]
[363897706,1748915450893,-1600.29,0.00020273,2]
[363897707,1748915450903,-2680.44257,0.00020279,3]
[363897708,1748915450912,-500.91417317,0.0002035,2]
[363897709,1748915450922,-2680.44257,0.00020521,3]
[363897710,1748915450931,-440.0,0.00020547,2]
[363897711,1748915450941,-440.0,0.00020547,2]
[363897712,1748915450950,-3072.97,0.00020547,2]
[363897713,1748915450960,-440.0,0.00020547,2]
[363897714,1748915450969,-440.0,0.00020547,2]
[363897715,1748915450979,-673.12,0.00020547,2]
[363897716,1748915450989,-1140.48,0.00020547,2]
[363897717,1748915450999,-1166.26,0.00020547,2]
[363897718,1748915451009,-1327.55,0.00020547,2]
[363897719,1748915451018,-2891.61,0.00020547,2]
[363897720,1748915451028,-820.65,0.00020547,2]
[363897721,1748915451038,-440.0,0.00020547,2]
[363897722,1748915451048,-1856.38,0.00020547,2]
[363897723,1748915451057,-487.61,0.00020547,2]
[363897724,1748915451069,-1499.33,0.00020547,2]
[363897725,1748915451078,-3772.31,0.00020547,2]
[363897726,1748915451088,-578.77,0.00020547,2]
[363897727,1748915451098,-2565.31,0.00020547,2]
[363897728,1748915451107,-929.64,0.00020547,2]
[363897729,1748915451117,-1474.4,0.00020547,2]
[363897730,1748915451127,-617.96,0.00020547,2]
[363897731,1748915451136,-440.0,0.00020547,2]
[363897732,1748915451145,-440.0,0.00020547,2]
[363897733,1748915451155,-1385.9,0.00020547,2]
[363897735,1748915451164,-1505.24,0.00020547,2]
[363897737,1748915451174,-573.34,0.00020547,2]
[363897739,1748915451183,-440.0,0.00020547,2]
[363897741,1748915451193,-1737.27,0.00020547,2]
[363897743,1748915451202,-490.89,0.00020547,2]
[363897745,1748915451212,-1368.96,0.00020547,2]
[363897747,1748915451221,-1273.02,0.00020547,2]
[363897749,1748915451230,-484.05,0.00020547,2]
[363897751,1748915451240,-212.86243091,0.00020547,2]
[363897752,1748915451250,-2793.2,0.00020547,2]
[363897754,1748915451259,-440.0,0.00020547,2]
[363897756,1748915451269,-1600.29,0.00020547,2]
[363897758,1748915451278,-1930.08,0.000206,2]
[363897760,1748915451288,-151.0,0.000206,2]
[363897761,1748915451297,-152.118527,0.000206,2]
[363897763,1748915451307,-236.973658,0.000206,2]
[363897765,1748915451317,-236.973658,0.000206,2]
[363897767,1748915451326,-151.70223,0.000206,2]
[363897769,1748915451336,-806.18875192,0.00020615,2]
[363897771,1748915451345,-177.8757286,0.00020615,2]
[363897773,1748915451355,-671.38059693,0.00020644,2]
[363897775,1748915451365,-16509.16,0.00020737,2]
[363897777,1748915451374,-2680.44257,0.00020762,3]
[363897779,1748915451384,-440.0,0.00020821,2]
[363897781,1748915451393,-440.0,0.00020821,2]
[363897783,1748915451402,-3072.97,0.00020821,2]
[363897785,1748915451413,-440.0,0.00020821,2]
[363897787,1748915451422,-440.0,0.00020821,2]
[363897789,1748915451431,-673.12,0.00020821,2]
[363897791,1748915451441,-1140.48,0.00020821,2]
[363897793,1748915451451,-1166.26,0.00020821,2]
[363897795,1748915451461,-1327.55,0.00020821,2]
[363897797,1748915451473,-2891.61,0.00020821,2]
[363897799,1748915451482,-820.65,0.00020821,2]
[363897801,1748915451492,-457.0360641,0.00020821,2]
[363897803,1748915451501,-1856.38,0.00020821,2]
[363897805,1748915451510,-487.61,0.00020821,2]
[363897807,1748915451520,-1499.33,0.00020821,2]
[363897809,1748915451530,-3772.31,0.00020821,2]
[363897811,1748915451539,-578.77,0.00020821,2]
[363897813,1748915451548,-151.0,0.00020821,2]
[363897815,1748915451556,-2565.31,0.00020821,2]
[363897817,1748915451566,-151.0,0.00020821,2]
[363897819,1748915451575,-151.0,0.00020821,2]
[363897820,1748915451584,-929.64,0.00020821,2]
[363897822,1748915451593,-1474.4,0.00020821,2]
[363897824,1748915451603,-151.0,0.00020821,2]
[363897826,1748915451613,-389.76064,0.00020821,2]
[363897828,1748915451623,-617.96,0.00020821,2]
[363897831,1748915451640,-389.76064,0.00020821,2]
[363897833,1748915451652,-440.0,0.00020821,2]
[363897835,1748915451663,-440.0,0.00020821,2]
[363897837,1748915451673,-1385.9,0.00020821,2]
[363897839,1748915451683,-153.326271,0.00020821,2]
[363897841,1748915451694,-1505.24,0.00020821,2]
[363897844,1748915451704,-573.34,0.00020821,2]
[363897846,1748915451713,-440.0,0.00020821,2]
[363897848,1748915451723,-1737.27,0.00020821,2]
[363897850,1748915451733,-490.89,0.00020821,2]
[363897852,1748915451743,-1368.96,0.00020821,2]
[363897854,1748915451752,-1273.02,0.00020821,2]
[363897856,1748915451762,-484.05,0.00020821,2]
[363897858,1748915451771,-2793.2,0.00020821,2]
[363897860,1748915451781,-440.0,0.00020821,2]
[363897862,1748915451795,-2680.44257,0.00021003,4]
[363897864,1748915451805,-1000.0,0.0002106,2]
[363897866,1748915451814,-370.6107417,0.00021068,2]
[363897868,1748915451823,-364.4406513,0.00021068,2]
[363897870,1748915451833,-364.4406513,0.00021068,2]
[363897885,1748915451974,-362.9150723,0.00021068,2]
[363897887,1748915451984,-440.0,0.00021095,2]
[363897890,1748915451994,-512.25230649,0.00021095,2]
[363897892,1748915452004,-3072.97,0.00021095,2]
[363897894,1748915452014,-440.0,0.00021095,2]
[363897896,1748915452024,-440.0,0.00021095,2]
[363897898,1748915452033,-673.12,0.00021095,2]
[363897900,1748915452043,-1140.48,0.00021095,2]
[363897902,1748915452053,-1166.26,0.00021095,2]
[363897904,1748915452062,-1327.55,0.00021095,2]
[363897906,1748915452072,-2891.61,0.00021095,2]
[363897908,1748915452082,-820.65,0.00021095,2]
[363897910,1748915452091,-1856.38,0.00021095,2]
[363897912,1748915452101,-487.61,0.00021095,2]
[363897913,1748915452110,-1499.33,0.00021095,2]
[363897915,1748915452119,-3772.31,0.00021095,2]
[363897917,1748915452129,-578.77,0.00021095,2]
[363897919,1748915452138,-2565.31,0.00021095,2]
[363897921,1748915452148,-929.64,0.00021095,2]
[363897923,1748915452158,-1474.4,0.00021095,2]
[363897925,1748915452168,-617.96,0.00021095,2]
[363897927,1748915452177,-572.76806273,0.00021095,2]
[363897929,1748915452187,-440.0,0.00021095,2]
[363897931,1748915452197,-1385.9,0.00021095,2]
[363897934,1748915452210,-1505.24,0.00021095,2]
[363897936,1748915452220,-573.34,0.00021095,2]
[363897938,1748915452230,-440.0,0.00021095,2]
[363897940,1748915452240,-1737.27,0.00021095,2]
[363897942,1748915452249,-490.89,0.00021095,2]
[363897944,1748915452259,-1368.96,0.00021095,2]
[363897946,1748915452270,-1273.02,0.00021095,2]
[363897948,1748915452280,-484.05,0.00021095,2]
[363897950,1748915452289,-2793.2,0.00021095,2]
[363897952,1748915452299,-440.0,0.00021095,2]
[363897953,1748915452310,-153.84648314,0.00021199,2]
[363897955,1748915452320,-152.37664978,0.00021199,2]
[363897957,1748915452330,-207.4,0.00021199,2]
[363897959,1748915452340,-500.0,0.00021199,2]
[363897961,1748915452350,-500.0,0.00021199,2]
[363897963,1748915452360,-500.0,0.00021199,2]
[363897965,1748915452369,-500.0,0.00021199,2]
[363897967,1748915452379,-500.0,0.00021199,2]
[363897969,1748915452388,-500.0,0.00021199,2]
[363897971,1748915452397,-500.0,0.00021199,2]
[363897973,1748915452407,-500.0,0.00021199,2]
[363897975,1748915452416,-500.0,0.00021199,2]
[363897977,1748915452425,-500.0,0.00021199,2]
[363897979,1748915452435,-500.0,0.00021199,2]
[363897981,1748915452446,-500.0,0.00021199,2]
[363897983,1748915452456,-500.0,0.00021199,2]
[363897985,1748915452466,-500.0,0.00021199,2]
[363897987,1748915452475,-500.0,0.00021199,2]
[363897989,1748915452484,-500.0,0.00021199,2]
[363897991,1748915452493,-500.0,0.00021199,2]
[363897993,1748915452503,-500.0,0.00021199,2]
[363897995,1748915452513,-500.0,0.00021199,2]
[363897997,1748915452522,-500.0,0.00021199,2]
[363897998,1748915452532,-500.0,0.00021199,2]
[363897999,1748915452541,-500.0,0.00021199,2]
[363898000,1748915452551,-500.0,0.00021199,2]
[363898001,1748915452561,-5000.0,0.00021199,2]
[363898002,1748915452570,-500.0,0.00021199,2]
[363898003,1748915452579,-500.0,0.00021199,2]
[363898004,1748915452589,-500.0,0.00021199,2]
[363898005,1748915452598,-500.0,0.00021199,2]
[363898006,1748915452608,-3853.49126652,0.00021199,2]
[363898007,1748915452617,-500.0,0.00021199,2]
[363898008,1748915452626,-500.0,0.00021199,2]
[363898009,1748915452635,-500.0,0.00021199,2]
[363898010,1748915452644,-2680.44257,0.00021245,4]
[363898011,1748915452653,-501.60086347,0.00021292,2]
[363898012,1748915452666,-1000.0,0.00021294,5]
[363898013,1748915452675,-440.0,0.00021369,2]
[363898014,1748915452684,-3072.97,0.00021369,2]
[363898015,1748915452694,-445.59363616,0.00021369,2]
[363898016,1748915452703,-522.71695512,0.00021369,2]
[363898017,1748915452712,-673.12,0.00021369,2]
[363898018,1748915452722,-1140.48,0.00021369,2]
[363898019,1748915452732,-1166.26,0.00021369,2]
[363898020,1748915452743,-1327.55,0.00021369,2]
[363898021,1748915452755,-2891.61,0.00021369,2]
[363898022,1748915452765,-820.65,0.00021369,2]
[363898024,1748915452778,-1856.38,0.00021369,2]
[363898027,1748915452788,-487.61,0.00021369,2]
[363898029,1748915452803,-1499.33,0.00021369,2]
[363898031,1748915452814,-3772.31,0.00021369,2]
[363898033,1748915452824,-578.77,0.00021369,2]
[363898035,1748915452835,-2565.31,0.00021369,2]
[363898037,1748915452845,-929.64,0.00021369,2]
[363898039,1748915452855,-1474.4,0.00021369,2]
[363898041,1748915452865,-617.96,0.00021369,2]
[363898043,1748915452883,-440.0,0.00021369,2]
[363898045,1748915452893,-1385.9,0.00021369,2]
[363898047,1748915452903,-1505.24,0.00021369,2]
[363898049,1748915452913,-573.34,0.00021369,2]
[363898051,1748915452923,-553.29251388,0.00021369,2]
[363898053,1748915452932,-1737.27,0.00021369,2]
[363898055,1748915452942,-490.89,0.00021369,2]
[363898057,1748915452952,-1368.96,0.00021369,2]
[363898059,1748915452962,-1273.02,0.00021369,2]
[363898061,1748915452971,-484.05,0.00021369,2]
[363898063,1748915452980,-2793.2,0.00021369,2]
[363898065,1748915452990,-440.0,0.00021369,2]
[363898067,1748915453000,-160.0,0.00021465,3]
[363898069,1748915453011,-176.5287595,0.00021479,2]
[363898071,1748915453021,-176.5287595,0.00021479,2]
[363898073,1748915453030,-176.5287595,0.00021479,2]
[363898075,1748915453040,-176.5287595,0.00021479,2]
[363898077,1748915453050,-2680.44257,0.00021486,5]
[363898079,1748915453060,-2000.0,0.000215,2]
[363898081,1748915453070,-501.56031537,0.000215,2]
[363898083,1748915453080,-500.0,0.000215,2]
[363898085,1748915453089,-600.0,0.000215,2]
[363898087,1748915453099,-502.75643107,0.000215,2]
[363898089,1748915453108,-83299.8096078,0.000216,2]
[363898095,1748915453362,-430.0,0.00016438,2]
[363898096,1748915453372,-440.0,0.00016986,2]
[363898097,1748915453381,-359.70535124,0.0001726,2]
[363898098,1748915453576,-59.09655527,0.0001726,2]
[363898099,1748915453588,-419.75828288,0.00017534,2]
[363898100,1748915453604,-327.34171712,0.00017534,2]
[363898101,1748915453614,-747.1,0.00017808,2]
[363898102,1748915453624,-493.14715405,0.00018082,2]
[363898103,1748915453637,-253.95284595,0.00018082,2]
[363898104,1748915453646,-747.1,0.00018356,2]
[363898105,1748915453656,-747.1,0.0001863,2]
[363898106,1748915453668,-747.1,0.00018904,2]
[363898107,1748915453682,-747.1,0.00019178,2]
[363898108,1748915453691,-279.265437,0.00019178,2]
[363898109,1748915453702,-747.1,0.00019452,2]
[363898110,1748915453711,-224.998427,0.00019726,2]
[363898111,1748915453819,-747.1,0.00019726,2]
[363898112,1748915453829,-747.1,0.0002,2]
[363898113,1748915453841,-224.998427,0.00020273,2]
[363898114,1748915453850,-747.1,0.00020273,2]
[363898115,1748915453860,-747.1,0.00020547,2]
[363898116,1748915453871,-1600.29,0.00020821,2]
[363898117,1748915453881,-747.1,0.00020821,2]
[363898118,1748915453891,-1600.29,0.00021095,2]
[363898119,1748915453901,-747.1,0.00021095,2]
[363898120,1748915453910,-224.998427,0.00021199,2]
[363898121,1748915453921,-1600.29,0.00021369,2]
[363898122,1748915453933,-747.1,0.00021369,2]
[363898123,1748915453943,-72754.8617622,0.000216,2]
[363898124,1748915453953,-10258.5288168,0.00021601,2]
[363898146,1748915454231,-430.0,0.00016438,2]
[363898148,1748915454241,-224.998427,0.00019726,2]
[363898150,1748915454251,-279.265437,0.00019796,2]
[363898152,1748915454260,-224.998427,0.00020273,2]
[363898154,1748915454269,-279.265437,0.00020547,2]
[363898156,1748915454278,-224.998427,0.00021199,2]
[363898158,1748915454287,-279.265437,0.000215,2]
[363898160,1748915454296,-10377.9111832,0.00021601,2]
[363898162,1748915454307,-327.309002,0.00021601,2]
[363898165,1748915454317,-327.309002,0.00021601,2]
[363898167,1748915454327,-151.0,0.00021601,2]
[363898169,1748915454338,-440.0,0.00021643,2]
[363898171,1748915454350,-151.0,0.00021643,2]
[363898173,1748915454359,-3072.97,0.00021643,2]
[363898175,1748915454369,-236.973658,0.00021643,2]
[363898177,1748915454379,-236.973658,0.00021643,2]
[363898179,1748915454389,-673.12,0.00021643,2]
[363898181,1748915454399,-1140.48,0.00021643,2]
[363898183,1748915454409,-1166.26,0.00021643,2]
[363898185,1748915454420,-1327.55,0.00021643,2]
[363898187,1748915454432,-2891.61,0.00021643,2]
[363898189,1748915454442,-1555.92940387,0.00021643,2]
[363898191,1748915454454,-300.45059613,0.00021643,2]
[363898193,1748915454464,-71.9602162,0.00021643,2]
[363898195,1748915454476,-415.6497838,0.00021643,2]
[363898197,1748915454486,-1499.33,0.00021643,2]
[363898200,1748915454496,-375.02020608,0.00021643,2]
[363898202,1748915454508,-3397.28979392,0.00021643,2]
[363898204,1748915454518,-578.77,0.00021643,2]
[363898206,1748915454527,-2565.31,0.00021643,2]
[363898208,1748915454536,-216.854973,0.00021643,2]
[363898210,1748915454546,-929.64,0.00021643,2]
[363898212,1748915454555,-1474.4,0.00021643,2]
[363898214,1748915454565,-151.0,0.00021643,2]
[363898216,1748915454574,-617.96,0.00021643,2]
[363898218,1748915454584,-440.0,0.00021643,2]
[363898220,1748915454593,-1385.9,0.00021643,2]
[363898222,1748915454603,-1505.24,0.00021643,2]
[363898224,1748915454612,-573.34,0.00021643,2]
[363898226,1748915454622,-1737.27,0.00021643,2]
[363898228,1748915454631,-490.89,0.00021643,2]
[363898230,1748915454640,-1368.96,0.00021643,2]
[363898232,1748915454649,-1273.02,0.00021643,2]
[363898233,1748915454658,-484.05,0.00021643,2]
[363898235,1748915454670,-2793.2,0.00021643,2]
[363898238,1748915454680,-1600.29,0.00021643,2]
[363898239,1748915454689,-440.0,0.00021643,2]
[363898241,1748915454699,-747.1,0.00021643,2]
[363898243,1748915454708,-551.73712588,0.00021668,2]
[363898245,1748915454718,-151.0,0.000217,3]
[363898247,1748915454729,-1930.08,0.000217,2]
[363898249,1748915454739,-671.38059693,0.0002172,2]
[363898251,1748915454748,-2680.44257,0.00021728,5]
[363898253,1748915454759,-5000.0,0.00021747,2]
[363898255,1748915454768,-2000.0,0.000218,4]
[363898257,1748915454779,-2000.0,0.000218,5]
[363898259,1748915454792,-1089.12678278,0.000218,6]
[363898285,1748915455034,1516.0,0.00024657,120]
[363899012,1748915476027,211.31315,0.00013699,2]
[363899038,1748915622806,7845.2941476,0.00024657,120]
[363899039,1748915816303,7843.18525,0.00015506,2]
[363899042,1748916174589,4232.8466364,0.00024657,120]
[363899050,1748916270144,430.0,0.00024658,120]
[363899051,1748916271296,1118.01,0.00024657,120]
[363899084,1748916576072,210.443031,0.00013699,2]
[363899118,1748916632325,-500.13654413,0.00015915,2]
[363899120,1748916632336,-234.88856642,0.00016238,2]
[363899122,1748916632346,-595.21809469,0.00016338,2]
[363899124,1748916632356,-300.0,0.00016437,2]
[363899126,1748916632365,-300.0,0.00016437,2]
[363899128,1748916632376,-440.0,0.00016438,2]
[363899129,1748916632386,-440.0,0.00016438,2]
[363899131,1748916632395,-433.40822943,0.00016438,2]
[363899133,1748916632407,-433.02748644,0.00016438,2]
[363899135,1748916632416,-440.0,0.00016438,2]
[363899136,1748916632425,-433.95488339,0.00016438,2]
[363899138,1748916632435,-434.31134257,0.00016438,2]
[363899140,1748916632446,-440.0,0.00016438,2]
[363899142,1748916632456,-440.0,0.00016438,2]
[363899145,1748916632465,-433.51063126,0.00016438,2]
[363899148,1748916632475,-361.28354323,0.00016438,2]
[363899150,1748916632484,-440.0,0.00016438,2]
[363899153,1748916632494,-440.0,0.00016438,2]
[363899156,1748916632504,-440.0,0.00016438,2]
[363899159,1748916632513,-427.16350096,0.00016438,2]
[363899161,1748916632523,-440.0,0.00016438,2]
[363899164,1748916632533,-160.36592059,0.00016438,2]
[363899167,1748916632543,-440.0,0.00016438,2]
[363899169,1748916632553,-440.0,0.00016438,2]
[363899171,1748916632562,-380.44267417,0.00016438,2]
[363899172,1748916632574,-431.75143913,0.00016438,2]
[363899174,1748916632584,-436.00070217,0.00016438,2]
[363899176,1748916632595,-435.17090567,0.00016438,2]
[363899178,1748916632605,-404.07616816,0.00016438,2]
[363899180,1748916632615,-440.0,0.00016438,2]
[363899182,1748916632625,-486.81116443,0.00016438,2]
[363899183,1748916632635,-440.0,0.00016438,2]
[363899198,1748916632788,-482.27484108,0.00016438,2]
[363899200,1748916632804,-435.59404783,0.00016438,2]
[363899202,1748916632814,-435.80060742,0.00016438,2]
[363899203,1748916632823,-440.0,0.00016438,2]
[363899205,1748916632833,-433.98790852,0.00016438,2]
[363899207,1748916632843,-440.0,0.00016438,2]
[363899209,1748916632852,-400.31192032,0.00016438,2]
[363899211,1748916632862,-437.51342781,0.00016438,2]
[363899212,1748916632872,-440.0,0.00016438,2]
[363899214,1748916632882,-440.0,0.00016438,2]
[363899216,1748916632891,-440.0,0.00016438,2]
[363899218,1748916632900,-419.21357832,0.00016438,2]
[363899220,1748916632913,-440.0,0.00016438,2]
[363899222,1748916632922,-430.0,0.00016438,2]
[363899223,1748916632931,-348.4558826,0.00016438,2]
[363899225,1748916632941,-276.27293633,0.00016438,2]
[363899227,1748916632950,-436.47679853,0.00016438,2]
[363899229,1748916632961,-440.0,0.00016438,2]
[363899231,1748916632970,-478.57441751,0.00016438,2]
[363899233,1748916632979,-440.0,0.00016438,2]
[363899234,1748916632989,-553.57076774,0.00016438,2]
[363899236,1748916632998,-440.0,0.00016438,2]
[363899238,1748916633008,-434.33138917,0.00016438,2]
[363899240,1748916633018,-432.94770674,0.00016438,2]
[363899243,1748916633043,-440.0,0.00016438,2]
[363899245,1748916633055,-440.0,0.00016438,2]
[363899247,1748916633066,-436.84326752,0.00016438,2]
[363899249,1748916633078,-440.0,0.00016438,2]
[363899250,1748916633089,-441.90002606,0.00016438,2]
[363899252,1748916633099,-440.0,0.00016438,2]
[363899254,1748916633111,-470.4229603,0.00016438,2]
[363899256,1748916633122,-440.0,0.00016438,2]
[363899258,1748916633133,-471.7287334,0.00016438,2]
[363899260,1748916633145,-440.0,0.00016438,2]
[363899262,1748916633161,-440.0,0.00016438,2]
[363899264,1748916633173,-440.0,0.00016438,2]
[363899265,1748916633183,-151.0,0.00016438,2]
[363899267,1748916633194,-440.0,0.00016438,2]
[363899269,1748916633207,-435.2017957,0.00016438,2]
[363899271,1748916633217,-440.0,0.00016438,2]
[363899272,1748916633228,-440.0,0.00016438,2]
[363899274,1748916633240,-440.0,0.00016438,2]
[363899276,1748916633251,-435.38247024,0.00016438,2]
[363899278,1748916633262,-440.0,0.00016438,2]
[363899280,1748916633273,-440.0,0.00016438,2]
[363899282,1748916633284,-269.63217454,0.00016438,2]
[363899284,1748916633295,-364.46263982,0.00016438,2]